bitfinex-derivatives/quotes_ETHF0:USTF0_20250531
["timestamp","ask_amount","ask_price","bid_price","bid_amount"]
[1748695285886,4.06968339,2529.4,2529.3,0.79034]
[1748695286181,4.06968339,2529.4,2529.3,2.02424]
[1748695286387,0.07155339,2529.4,2529.3,2.02424]
[1748695286885,0.86186339,2529.4,2529.3,2.02424]
[1748695287084,0.6494,2529.5,2529.4,0.79031]
[1748695287085,1.4397,2529.5,2529.4,0.79031]
[1748695287284,1.4397,2529.5,2529.4,2.02421]
[1748695288791,0.79034,2529.3,2529.2,3.92301827]
[1748695289179,0.79034,2529.3,2529.2,3.13265827]
[1748695289689,0.79038,2529.2,2529.1,0.79038]
[1748695290490,0.79037,2529.3,2529.2,0.79036]
[1748695290788,0.79041,2529.2,2529.1,0.79039]
[1748695290989,0.6305,2529.2,2529.1,0.79039]
[1748695293395,0.6305,2529.2,2529.1,2.09769]
[1748695295497,0.6305,2529.2,2529.1,5.23034827]
[1748695295899,1.42088,2529.2,2529.1,5.23034827]
[1748695297100,1.42088,2529.2,2529.1,3.13265827]
[1748695297297,1.42088,2529.2,2529.1,3.92306827]
[1748695297507,1.42088,2529.2,2529.1,5.24386827]
[1748695297992,0.6305,2529.2,2529.1,5.24386827]
[1748695298192,1.42088,2529.2,2529.1,5.24386827]
[1748695298403,0.6305,2529.2,2529.1,5.24386827]
[1748695298700,1.42088,2529.2,2529.1,5.24386827]
[1748695299400,0.6305,2529.2,2529.1,5.24386827]
[1748695299602,1.42088,2529.2,2529.1,4.45345827]
[1748695300097,1.49243339,2529.2,2529.1,4.45345827]
[1748695300496,0.07155339,2529.2,2529.1,5.24386827]
[1748695301301,5.1263,2529.7,2529.1,5.24386827]
[1748695301302,3.2078,2529.7,2529.6,0.79025]
[1748695301501,0.65473132,2529.9,2529.8,0.79019]
[1748695301701,1.44489132,2529.9,2529.8,0.79019]
[1748695301904,0.65473132,2529.9,2529.8,0.79019]
[1748695302804,1.44489132,2529.9,2529.8,0.79019]
[1748695303007,1.44489132,2529.9,2529.8,2.05139]
[1748695305001,1.44489132,2529.9,2529.8,1.2612]
[1748695305301,1.44489132,2529.9,2529.8,2.05139]
[1748695306302,0.65473132,2529.9,2529.8,2.05139]
[1748695307009,1.44489132,2529.9,2529.8,1.2612]
[1748695307493,1.44489132,2529.9,2529.8,2.05139]
[1748695308210,1.44489132,2529.9,2529.8,1.2612]
[1748695308505,1.44489132,2529.9,2529.8,2.05139]
[1748695310505,1.51644471,2529.9,2529.8,2.05139]
[1748695311107,1.51644471,2529.9,2529.8,1.2612]
[1748695312306,1.51644471,2529.9,2529.8,2.05139]
[1748695313208,1.51644471,2529.9,2529.8,1.2612]
[1748695314305,0.86764471,2529.9,2529.8,1.2612]
[1748695314508,0.86764471,2529.9,2529.8,1.9242]
[1748695316106,0.86764471,2529.9,2529.8,2.71439]
[1748695317110,0.86764471,2529.9,2529.8,1.9242]
[1748695320417,0.07748471,2529.9,2529.8,1.9242]
[1748695320612,3.2078,2530.6,2530.3,0.79001]
[1748695320910,0.6752,2530.7,2530.3,7.0728]
[1748695321211,0.6752,2530.7,2530.6,0.78994]
[1748695321610,0.78994,2530.6,2530.5,2.13605]
[1748695321812,0.78994,2530.6,2530.5,0.78995]
[1748695322017,0.78994,2530.6,2530.5,0.78997]
[1748695322712,0.78994,2530.6,2530.4,1.25793132]
[1748695322918,0.6752,2530.7,2530.4,1.25793132]
[1748695322919,0.78997,2530.5,2530.4,2.04791132]
[1748695323216,0.78996,2530.6,2530.4,2.04791132]
[1748695323415,0.78997,2530.5,2530.4,2.04791132]
[1748695323613,0.78997,2530.5,2530.4,1.25793132]
[1748695323808,0.78997,2530.5,2530.4,0.00593132]
[1748695324619,2.11492339,2530.5,2530.4,0.00593132]
[1748695326217,0.86152339,2530.5,2530.4,0.00593132]
[1748695326918,0.86152339,2530.5,2530.4,1.46473132]
[1748695327127,0.86152339,2530.5,2530.4,0.67473132]
[1748695327611,0.07155339,2530.5,2530.4,1.46473132]
[1748695331314,0.86152339,2530.5,2530.4,4.53873132]
[1748695331515,0.86152339,2530.5,2530.4,7.65500073]
[1748695331715,0.86152339,2530.5,2530.4,8.44500073]
[1748695332019,0.86152339,2530.5,2530.4,7.65500073]
[1748695332321,0.86152339,2530.5,2530.4,4.53873132]
[1748695332524,0.86152339,2530.5,2530.4,0.00593132]
[1748695332723,2.75742339,2530.5,2530.4,0.00593132]
[1748695333320,1.48382339,2530.5,2530.4,0.79593132]
[1748695333522,1.48382339,2530.5,2530.4,1.36483132]
[1748695333716,1.48382339,2530.5,2530.4,2.01443132]
[1748695334618,1.48382339,2530.5,2530.4,1.36483132]
[1748695335513,1.48382339,2530.5,2530.4,0.00593132]
[1748695339122,2.75332339,2530.5,2530.4,0.00593132]
[1748695342128,7.75332339,2530.5,2530.4,0.00593132]
[1748695343532,2.75332339,2530.5,2530.4,0.00593132]
[1748695350837,1.48382339,2530.5,2530.4,0.00593132]
[1748695352139,4.69162339,2530.5,2530.4,0.00593132]
[1748695356742,1.48382339,2530.5,2530.4,0.00593132]
[1748695357239,4.69162339,2530.5,2530.4,0.00593132]
[1748695363566,4.06932339,2530.5,2530.4,0.00593132]
[1748695364460,4.06932339,2530.5,2530.4,1.33393132]
[1748695366063,4.06932339,2530.5,2530.4,0.00593132]
[1748695366264,5.30372339,2530.5,2530.4,0.00593132]
[1748695372971,2.09592339,2530.5,2530.4,0.00593132]
[1748695373267,5.30372339,2530.5,2530.4,0.00593132]
[1748695373469,4.06932339,2530.5,2530.4,0.00593132]
[1748695374068,4.06932339,2530.5,2530.4,1.27553132]
[1748695374469,4.06932339,2530.5,2530.4,2.06553132]
[1748695374672,4.06932339,2530.5,2530.4,1.27553132]
[1748695376165,4.06932339,2530.5,2530.4,0.00593132]
[1748695376668,5.32842339,2530.5,2530.4,0.00593132]
[1748695379375,4.06932339,2530.5,2530.4,0.00593132]
[1748695383274,0.07155339,2530.5,2530.4,0.79593132]
[1748695383482,0.86152339,2530.5,2530.4,3.43603132]
[1748695384177,0.86152339,2530.5,2530.4,6.55230073]
[1748695385481,0.86152339,2530.5,2530.4,4.46390073]
[1748695385682,4.06932339,2530.5,2530.4,3.12220073]
[1748695386680,4.06932339,2530.5,2530.4,0.00593132]
[1748695387777,0.86152339,2530.5,2530.4,0.79593132]
[1748695387978,0.86152339,2530.5,2530.4,0.00593132]
[1748695388178,4.06932339,2530.5,2530.4,1.27633132]
[1748695390286,0.79003,2530.3,2530.2,3.11626941]
[1748695390988,2.09763,2530.3,2530.2,3.11626941]
[1748695391389,0.79013,2530.0,2529.9,3.11626941]
[1748695391581,0.79013,2530.0,2529.9,4.45916941]
[1748695391982,0.79013,2530.0,2529.9,5.24932941]
[1748695392889,0.79013,2530.0,2529.9,2.13306]
[1748695393689,1.43222,2530.1,2530.0,0.79013]
[1748695393887,1.43222,2530.1,2530.0,2.14973]
[1748695395090,1.43222,2530.1,2530.0,1.3596]
[1748695398901,1.43222,2530.1,2530.0,2.14973]
[1748695400402,1.43222,2530.1,2530.0,1.3596]
[1748695400704,1.50377339,2530.1,2530.0,1.3596]
[1748695401097,1.50377339,2530.1,2530.0,2.14973]
[1748695401605,0.79,2530.5,2530.4,0.78998]
[1748695403407,0.79,2530.5,2530.4,1.42198]
[1748695403706,3.99776,2530.6,2530.5,0.78997]
[1748695403906,3.99776,2530.6,2530.5,2.02527]
[1748695405101,3.99776,2530.6,2530.5,1.2353]
[1748695407308,0.79003,2530.3,2530.2,0.6294]
[1748695407812,0.79003,2530.3,2530.2,1.9876]
[1748695408010,0.79003,2530.3,2530.2,2.77766]
[1748695410411,0.79003,2530.3,2530.1,3.12761702]
[1748695410412,0.79006,2530.2,2530.1,3.12761702]
[1748695410610,1.45116,2530.2,2530.1,3.12761702]
[1748695410813,0.86164339,2530.1,2530.0,3.12761702]
[1748695411718,0.79013,2530.0,2529.9,5.25775702]
[1748695412015,0.79013,2530.0,2529.9,4.46761702]
[1748695412520,3.99793,2530.0,2529.9,3.12761702]
[1748695412707,5.27683,2530.0,2529.9,3.12761702]
[1748695413413,0.79019,2529.8,2529.7,0.00593132]
[1748695414212,2.09199,2529.8,2529.7,0.00593132]
[1748695415918,2.16354339,2529.8,2529.7,0.00593132]
[1748695416310,2.16354339,2529.8,2529.3,3.91627139]
[1748695416311,0.79031,2529.4,2529.3,3.91627139]
[1748695417015,0.79031,2529.4,2529.1,2.8289]
[1748695417016,0.6314,2529.4,2529.1,2.0385]
[1748695417215,0.79038,2529.2,2529.1,2.0385]
[1748695417824,0.79041,2529.1,2529.0,0.00593132]
[1748695418119,2.15531,2529.1,2529.0,0.00593132]
[1748695420220,0.79041,2529.1,2529.0,0.00593132]
[1748695422222,2.02841,2529.1,2529.0,0.00593132]
[1748695428019,0.79041,2529.1,2529.0,0.00593132]
[1748695428219,0.79041,2529.1,2529.0,1.29863132]
[1748695438329,1.47121,2529.1,2529.0,1.29863132]
[1748695438631,1.47121,2529.1,2529.0,0.00593132]
[1748695442231,21.2938,2529.2,2529.1,0.79041]
[1748695442232,3.9982,2529.2,2529.1,0.79041]
[1748695442431,3.2078,2529.2,2529.1,1.46601]
[1748695442624,3.2078,2529.2,2529.1,6.46601]
[1748695442826,3.2078,2529.2,2529.1,7.77151]
[1748695443131,3.99818,2529.2,2529.1,7.77151]
[1748695444627,0.79038,2529.2,2529.1,7.77151]
[1748695445033,0.79038,2529.2,2529.1,10.89912702]
[1748695446434,0.79038,2529.2,2529.1,5.10871702]
[1748695446636,3.99818,2529.2,2529.1,4.43311702]
[1748695446938,0.79041,2529.1,2529.0,0.00593132]
[1748695447135,1.45741,2529.1,2529.0,0.00593132]
[1748695449432,2.12001,2529.1,2529.0,0.00593132]
[1748695459530,2.31761,2529.1,2529.0,1.32e-06]
[1748695460238,3.35001884,2529.1,2529.0,1.32e-06]
[1748695460638,8.35001884,2529.1,2529.0,1.32e-06]
[1748695463142,9.61441884,2529.1,2529.0,1.32e-06]
[1748695463933,4.61441884,2529.1,2529.0,1.32e-06]
[1748695464137,22.69941884,2529.1,2529.0,1.32e-06]
[1748695465443,2.02041884,2529.1,2529.0,1.32e-06]
[1748695465931,0.98801,2529.1,2529.0,1.32e-06]
[1748695471057,4.19581,2529.1,2529.0,1.32e-06]
[1748695472846,0.98801,2529.1,2529.0,1.32e-06]
[1748695473046,4.19581,2529.1,2529.0,1.32e-06]
[1748695482150,22.27881,2529.1,2529.0,1.32e-06]
[1748695486252,27.27881,2529.1,2529.0,1.32e-06]
[1748695486459,0.79053,2528.7,2528.6,0.6248]
[1748695486756,0.79053,2528.7,2528.6,1.9664]
[1748695486958,0.79053,2528.7,2528.6,1.3416]
[1748695487163,1.97635,2528.7,2528.4,7.04388841]
[1748695487361,3.99839,2528.5,2528.4,7.04388841]
[1748695488365,0.79063,2528.4,2528.3,0.00593132]
[1748695489262,0.98833,2528.4,2528.3,0.00593132]
[1748695500771,0.98833,2528.4,2528.3,5.00593132]
[1748695501564,0.98833,2528.4,2528.3,0.00593132]
[1748695503268,0.98833,2528.4,2528.3,1.27003132]
[1748695514484,1.63143,2528.4,2528.3,1.27003132]
[1748695516688,1.63143,2528.4,2528.3,0.00593132]
[1748695517082,1.63143,2528.4,2528.3,1.24793132]
[1748695520995,1.63143,2528.4,2528.3,2.03859132]
[1748695521195,1.63143,2528.4,2528.3,1.24793132]
[1748695522097,1.63143,2528.4,2528.3,4.37554834]
[1748695523499,1.63143,2528.4,2528.3,5.16620834]
[1748695524296,1.63143,2528.4,2528.3,4.37554834]
[1748695524995,1.63143,2528.4,2528.3,5.16620834]
[1748695525794,1.63143,2528.4,2528.3,4.37554834]
[1748695527791,1.63143,2528.4,2528.3,5.16620834]
[1748695527997,1.63143,2528.4,2528.3,4.37554834]
[1748695528500,0.98833,2528.4,2528.3,4.37554834]
[1748695528900,3.2078,2528.5,2528.4,0.79063]
[1748695529098,0.79055,2528.7,2528.6,0.79055]
[1748695529798,0.79055,2528.7,2528.6,2.13655]
[1748695530097,3.99835,2528.7,2528.6,2.13655]
[1748695530998,3.99835,2528.7,2528.6,1.346]
[1748695531200,3.99835,2528.7,2528.6,2.13656]
[1748695532695,3.99835,2528.7,2528.6,1.346]
[1748695534600,3.99835,2528.7,2528.6,2.13656]
[1748695535398,3.2078,2528.7,2528.6,2.13656]
[1748695535592,0.1939,2528.8,2528.7,0.79053]
[1748695535799,0.1939,2528.8,2528.7,7.15213]
[1748695537109,3.2078,2529.4,2529.3,0.79034]
[1748695537803,3.2078,2529.4,2529.3,2.02264]
[1748695538799,0.00593132,2529.5,2529.4,0.79031]
[1748695539303,3.2078,2529.7,2529.6,0.79025]
[1748695539504,3.27935339,2530.0,2529.9,0.79016]
[1748695539903,3.99793,2530.0,2529.9,0.79016]
[1748695540698,3.2078,2530.0,2529.9,0.79016]
[1748695541905,1.42349132,2530.2,2530.1,0.79009]
[1748695542112,0.00593132,2530.2,2530.1,0.79009]
[1748695542309,0.00593132,2530.2,2530.1,2.04719]
[1748695543308,3.2078,2530.6,2530.5,0.78997]
[1748695544217,3.2078,2530.6,2530.5,2.04707]
[1748695545018,0.00593132,2530.8,2530.7,0.78991]
[1748695545207,0.78993,2530.7,2530.5,5.25486]
[1748695545413,0.78993,2530.7,2530.6,0.78994]
[1748695545609,1.47083,2530.7,2530.6,0.78994]
[1748695547218,0.6809,2530.7,2530.6,0.78994]
[1748695549916,0.6809,2530.7,2530.6,2.12564]
[1748695550118,0.75245339,2530.7,2530.6,2.12564]
[1748695553717,0.07155339,2530.7,2530.6,2.12564]
[1748695554614,0.07155339,2530.7,2530.6,7.12564]
[1748695555014,0.00593132,2530.8,2530.7,0.78991]
[1748695555913,1.41648,2531.2,2531.1,0.78978]
[1748695555914,0.6267,2531.2,2531.1,0.78978]
[1748695557214,0.6267,2531.2,2530.9,0.78983]
[1748695557215,0.78984,2531.0,2530.9,0.78983]
[1748695558014,2.05959,2531.1,2531.0,0.78981]
[1748695559221,0.6267,2531.2,2531.1,0.78978]
[1748695559421,1.41645,2531.2,2531.1,0.78978]
[1748695559719,2.68625,2531.2,2531.1,0.78978]
[1748695560224,0.7898,2531.1,2531.0,0.78979]
[1748695560523,2.1022,2531.1,2531.0,0.78979]
[1748695560716,1.41646,2531.2,2531.1,0.78978]
[1748695560925,0.6267,2531.2,2531.1,0.78978]
[1748695561628,1.41645,2531.2,2531.1,0.78978]
[1748695562120,0.6267,2531.2,2531.1,0.78978]
[1748695563025,1.41645,2531.2,2531.1,0.78978]
[1748695563324,0.6267,2531.2,2531.1,0.78978]
[1748695563523,0.676,2531.3,2531.2,0.78975]
[1748695563726,1.46572,2531.3,2531.2,0.78975]
[1748695563922,0.676,2531.3,2531.2,0.78975]
[1748695564316,0.74755339,2531.3,2531.2,0.78975]
[1748695565327,0.74755339,2531.3,2531.2,2.13305]
[1748695565723,0.07155339,2531.3,2531.2,2.13305]
[1748695566520,0.00593132,2531.4,2531.3,0.78972]
[1748695566715,0.00593132,2531.4,2531.3,6.58072]
[1748695574531,0.00593132,2531.4,2531.3,7.20242]
[1748695578534,0.627,2531.9,2531.8,0.78956]
[1748695578731,0.78972,2531.3,2531.2,3.12868445]
[1748695579333,0.78971,2531.4,2531.3,0.78972]
[1748695580028,0.78974,2531.3,2531.2,0.78972]
[1748695580227,0.78972,2531.4,2531.3,0.78969]
[1748695582134,2.04458,2531.5,2531.4,0.78969]
[1748695583035,2.04458,2531.5,2531.1,3.33183]
[1748695583036,0.78972,2531.4,2531.3,0.78971]
[1748695585037,0.78972,2531.4,2531.3,0.7897]
[1748695585936,0.78975,2531.3,2531.2,0.78973]
[1748695586136,0.78975,2531.3,2531.1,1.3574]
[1748695586338,0.78978,2531.1,2531.0,0.00593132]
[1748695586738,0.78984,2530.9,2530.8,3.12868445]
[1748695586932,0.78994,2530.6,2530.5,3.2078]
[1748695587340,0.78994,2530.6,2530.5,3.99777]
[1748695587744,0.78992,2530.7,2530.6,0.78991]
[1748695588039,0.78994,2530.6,2530.5,3.2078]
[1748695588441,0.78994,2530.6,2530.5,3.99777]
[1748695588641,0.78993,2530.7,2530.6,0.78993]
[1748695588941,0.78994,2530.6,2530.5,3.99777]
[1748695589441,0.78994,2530.6,2530.5,3.2078]
[1748695590034,0.78994,2530.6,2530.5,3.99777]
[1748695590840,0.79,2530.4,2530.3,0.00593132]
[1748695591744,0.9871,2530.4,2530.3,0.00593132]
[1748695593334,2.3414,2530.4,2530.3,0.00593132]
[1748695594043,7.3414,2530.4,2530.3,0.00593132]
[1748695594239,7.3414,2530.4,2529.7,0.79019]
[1748695594240,0.7902,2529.8,2529.7,0.79019]
[1748695594637,0.79018,2529.9,2529.8,0.79018]
[1748695595239,1.9621,2530.1,2529.6,7.08673132]
[1748695595441,0.79021,2529.8,2529.7,0.7902]
[1748695596140,0.79018,2529.9,2529.8,0.79018]
[1748695596640,1.9621,2530.1,2530.0,0.79013]
[1748695597535,0.6442,2530.1,2530.0,0.79013]
[1748695598248,3.2078,2530.2,2530.1,0.79009]
[1748695598452,3.99786,2530.2,2530.1,0.79009]
[1748695599245,3.2078,2530.2,2530.1,0.79009]
[1748695599842,0.79008,2530.2,2530.1,0.79008]
[1748695600144,0.6729,2530.3,2530.0,1.3325]
[1748695600340,2.07729,2530.2,2530.1,0.79009]
[1748695600539,0.79009,2530.1,2530.0,2.1226]
[1748695600739,2.07729,2530.2,2530.1,0.79009]
[1748695600935,0.79009,2530.1,2530.0,2.1226]
[1748695601139,1.2872,2530.2,2529.9,0.6468]
[1748695601140,2.07729,2530.2,2530.1,0.79009]
[1748695602946,0.79012,2530.1,2530.0,0.79011]
[1748695603847,2.07728,2530.2,2530.1,0.79009]
[1748695604043,0.6729,2530.3,2530.2,0.79006]
[1748695604845,0.98711,2530.4,2530.3,0.79003]
[1748695605143,0.1971,2530.4,2530.3,0.79003]
[1748695605345,0.9871,2530.4,2530.3,0.79003]
[1748695605654,0.1971,2530.4,2530.3,0.79003]
[1748695605844,0.9871,2530.4,2530.3,0.79003]
[1748695606042,0.1971,2530.4,2530.3,0.79003]
[1748695606543,0.9871,2530.4,2530.3,0.79003]
[1748695607549,0.1971,2530.4,2530.3,0.79003]
[1748695607952,0.26865339,2530.4,2530.3,0.79003]
[1748695608855,0.1971,2530.4,2530.3,0.79003]
[1748695609349,0.1971,2530.4,2530.3,2.77053]
[1748695609952,0.26865339,2530.4,2530.3,2.77053]
[1748695610650,1.05865339,2530.4,2530.3,2.77053]
[1748695610850,0.26865339,2530.4,2530.3,2.77053]
[1748695611445,1.05865339,2530.4,2530.3,2.77053]
[1748695611846,0.26865339,2530.4,2530.3,2.77053]
[1748695612155,0.1971,2530.4,2530.3,2.77053]
[1748695612644,0.00593132,2530.8,2530.7,0.78991]
[1748695614845,0.00593132,2530.8,2530.7,2.05281]
[1748695615046,0.79581132,2530.8,2530.7,2.05281]
[1748695615449,0.78994,2530.6,2530.5,4.66394]
[1748695615847,0.78994,2530.6,2530.5,0.78994]
[1748695616049,0.79,2530.5,2530.3,5.10288445]
[1748695616250,2.7086,2530.5,2530.3,4.45228445]
[1748695616554,0.79,2530.4,2530.3,3.12868445]
[1748695616754,2.0752,2530.4,2530.3,0.79003]
[1748695617058,2.14675339,2530.4,2530.3,0.79003]
[1748695617961,1.35675339,2530.4,2530.3,0.79003]
[1748695618257,1.42339,2530.5,2530.4,0.79]
[1748695619458,0.79002,2530.4,2530.3,0.79001]
[1748695620066,2.77208,2530.5,2530.4,0.79]
[1748695621362,0.79,2530.4,2530.3,0.86913]
[1748695621663,0.79,2530.4,2530.3,0.07911]
[1748695621855,2.1441,2530.4,2530.3,0.07911]
[1748695622057,2.21565339,2530.4,2530.3,0.07911]
[1748695623060,2.1441,2530.4,2530.3,0.07911]
[1748695625259,2.1441,2530.4,2530.3,0.86914]
[1748695625663,2.1441,2530.4,2530.3,0.07911]
[1748695626257,2.21565339,2530.4,2530.3,0.07911]
[1748695627369,2.1441,2530.4,2530.3,0.07911]
[1748695629466,0.6334,2530.5,2530.3,0.07911]
[1748695629765,3.2078,2530.6,2530.5,0.78997]
[1748695629965,0.79581132,2530.8,2530.7,0.78991]
[1748695631260,0.00593132,2530.8,2530.7,0.78991]
[1748695632862,0.79581132,2530.8,2530.7,0.78991]
[1748695633558,0.00593132,2530.8,2530.7,0.78991]
[1748695634161,0.00593132,2530.8,2530.7,2.06551]
[1748695635267,0.79581132,2530.8,2530.7,2.06551]
[1748695637667,0.79581132,2530.8,2530.7,1.2756]
[1748695639464,0.78994,2530.6,2530.5,3.862]
[1748695639671,0.78997,2530.5,2530.4,3.12868445]
[1748695639872,2.74067,2530.5,2530.4,3.12868445]
[1748695640466,2.74067,2530.5,2530.3,0.07911]
[1748695640467,0.79,2530.4,2530.3,0.07911]
[1748695640664,3.2078,2530.4,2530.3,0.86914]
[1748695641069,0.79,2530.4,2530.3,0.86914]
[1748695641473,0.79,2530.4,2530.3,2.16204]
[1748695641675,0.00593132,2530.8,2530.7,0.78991]
[1748695641969,0.00593132,2530.8,2530.6,0.78993]
[1748695642270,0.78993,2530.7,2530.6,0.78993]
[1748695644868,0.07748471,2530.8,2530.7,0.78991]
[1748695645280,0.07748471,2530.8,2530.7,5.78991]
[1748695645474,0.78971,2531.4,2531.3,0.78972]
[1748695645672,0.78973,2531.3,2531.2,0.78973]
[1748695646876,0.00593132,2531.5,2531.2,0.78973]
[1748695647178,0.00593132,2531.5,2531.4,0.78969]
[1748695648879,4.64359,2532.1,2531.4,5.0]
[1748695649072,3.2078,2532.1,2532.0,0.7895]
[1748695650778,3.99727,2532.1,2532.0,0.7895]
[1748695651481,0.78952,2532.0,2531.9,0.78952]
[1748695651982,3.99729,2532.1,2532.0,0.7895]
[1748695652582,0.78953,2532.0,2531.9,0.78952]
[1748695653377,0.78953,2531.9,2531.8,1.3398]
[1748695653575,0.78963,2531.6,2531.5,1.46014]
[1748695653881,0.78963,2531.6,2531.5,0.78964]
[1748695654076,0.78966,2531.5,2531.4,2.12947]
[1748695654881,0.78965,2531.6,2531.5,0.78964]
[1748695655782,0.78965,2531.6,2531.4,1.3398]
[1748695655783,0.78962,2531.7,2531.6,0.78961]
[1748695656284,0.78964,2531.6,2531.5,0.78964]
[1748695656583,0.78964,2531.6,2531.5,2.13944]
[1748695656987,0.78961,2531.7,2531.6,0.78961]
[1748695657282,0.6258,2531.9,2531.5,1.3498]
[1748695657483,0.78961,2531.7,2531.6,0.7896]
[1748695658379,0.78958,2531.8,2531.7,0.78957]
[1748695658586,0.78958,2531.8,2531.7,0.78956]
[1748695658887,0.78958,2531.8,2531.7,0.78957]
[1748695659780,1.41536,2531.9,2531.8,0.78956]
[1748695660785,0.6258,2531.9,2531.5,2.0097]
[1748695660986,0.78961,2531.7,2531.6,0.78961]
[1748695662285,0.78963,2531.6,2531.5,2.13942]
[1748695662485,0.78966,2531.5,2531.4,3.99747]
[1748695662685,1.45446,2531.5,2531.4,3.99747]
[1748695663891,1.45446,2531.5,2531.4,3.2078]
[1748695664188,1.45446,2531.5,2531.4,3.99749]
[1748695664385,0.6648,2531.5,2531.4,3.99749]
[1748695665191,1.45446,2531.5,2531.4,3.99749]
[1748695666991,0.6648,2531.5,2531.4,3.99749]
[1748695667385,0.78962,2531.7,2531.6,0.78959]
[1748695667587,3.93978,2532.0,2531.5,2.09744]
[1748695667588,0.78963,2531.6,2531.5,2.09744]
[1748695668190,0.78963,2531.6,2531.4,3.2078]
[1748695668389,1.44066,2531.5,2531.4,3.99749]
[1748695668792,0.651,2531.5,2531.4,3.99749]
[1748695668998,1.44066,2531.5,2531.4,3.99749]
[1748695670991,0.651,2531.5,2531.4,3.99749]
[1748695671184,1.44066,2531.5,2531.4,3.99749]
[1748695671886,0.651,2531.5,2531.4,3.99749]
[1748695674292,0.98682,2531.7,2531.6,0.78963]
[1748695674693,0.1972,2531.7,2531.6,0.78963]
[1748695674888,0.9868,2531.7,2531.6,1.45903]
[1748695675189,0.1972,2531.7,2531.6,1.45903]
[1748695675694,0.1972,2531.7,2531.6,2.13323]
[1748695677697,0.1972,2531.7,2531.6,7.13323]
[1748695678597,0.1972,2531.7,2531.6,2.13323]
[1748695681995,0.1972,2531.7,2531.6,5.34103]
[1748695684604,0.1972,2531.7,2531.6,2.13323]
[1748695684795,0.1972,2531.7,2531.6,5.34103]
[1748695689903,0.1972,2531.7,2531.6,6.67283]
[1748695694103,0.6689,2532.2,2532.1,0.78947]
[1748695694310,0.6689,2532.2,2532.1,3.99727]
[1748695695204,0.6689,2532.2,2532.1,5.32537]
[1748695696610,1.2937,2532.6,2532.5,0.78935]
[1748695696611,2.08304,2532.6,2532.5,0.78935]
[1748695696812,0.78938,2532.5,2532.4,0.78936]
[1748695697005,2.08308,2532.5,2532.4,0.78936]
[1748695697612,0.78938,2532.4,2532.3,0.79532132]
[1748695697919,2.07228,2532.4,2532.3,0.00593132]
[1748695698108,2.75478,2532.4,2532.3,0.00593132]
[1748695698622,2.75478,2532.4,2532.3,0.79534132]
[1748695700818,1.9654,2532.4,2532.3,0.79534132]
[1748695702014,0.6825,2532.4,2532.3,0.79534132]
[1748695704027,1.9017,2532.6,2532.5,0.78935]
[1748695704228,0.6513,2532.6,2532.5,0.78935]
[1748695704433,0.6513,2532.6,2532.4,3.99717]
[1748695704736,1.9028,2532.9,2532.4,3.2078]
[1748695704737,1.2439,2532.9,2532.4,3.2078]
[1748695705026,0.6589,2532.8,2532.4,4.5025]
[1748695705228,0.78932,2532.6,2532.5,0.78932]
[1748695705438,2.0332,2532.7,2532.6,0.78931]
[1748695706228,1.2439,2532.7,2532.6,0.78931]
[1748695706628,2.03318,2532.7,2532.6,0.78931]
[1748695707734,1.2439,2532.7,2532.6,0.78931]
[1748695709132,2.03318,2532.7,2532.6,0.78931]
[1748695709533,0.78931,2532.6,2532.5,3.2078]
[1748695709737,0.78929,2532.7,2532.5,3.2078]
[1748695709933,0.78931,2532.6,2532.5,3.2078]
[1748695710128,0.78931,2532.6,2532.3,3.11912364]
[1748695710129,0.78938,2532.4,2532.3,3.11912364]
[1748695710330,3.99718,2532.4,2532.3,3.11912364]
[1748695710839,5.29668,2532.4,2532.3,0.00593132]
[1748695711238,2.08888,2532.4,2532.3,0.00593132]
[1748695711441,7.08888,2532.4,2532.3,0.00593132]
[1748695713239,2.08888,2532.4,2532.3,0.00593132]
[1748695713742,7.08888,2532.4,2532.3,0.00593132]
[1748695714445,2.08888,2532.4,2532.3,0.00593132]
[1748695717434,0.6594,2532.4,2532.3,0.79534132]
[1748695717638,7.1185,2532.7,2532.5,0.78934]
[1748695717841,0.78938,2532.5,2532.4,1.2371]
[1748695718041,0.78938,2532.5,2532.4,2.02648]
[1748695718341,0.78938,2532.5,2532.4,1.2371]
[1748695718538,0.78938,2532.5,2532.4,0.78938]
[1748695718743,0.78938,2532.4,2532.3,0.79532132]
[1748695719450,0.78936,2532.5,2532.4,0.78935]
[1748695719743,0.78936,2532.5,2532.4,2.04285]
[1748695721138,0.85302,2532.7,2532.6,0.78931]
[1748695722343,0.0637,2532.7,2532.6,0.78931]
[1748695723141,0.85298,2532.7,2532.6,2.08131]
[1748695725647,0.0637,2532.7,2532.6,2.08131]
[1748695726245,0.78935,2532.5,2532.4,3.99715]
[1748695726648,0.78935,2532.5,2532.4,5.27475]
[1748695727036,0.78933,2532.6,2532.5,0.78931]
[1748695727237,0.78931,2532.7,2532.6,0.78929]
[1748695727648,0.78931,2532.6,2532.5,2.06692]
[1748695729152,0.85301,2532.6,2532.5,2.06692]
[1748695730546,0.0637,2532.6,2532.5,2.06692]
[1748695737257,0.0637,2532.6,2532.5,12.06692]
[1748695738260,3.2078,2533.0,2532.9,0.78922]
[1748695738464,1.42095,2533.2,2533.1,0.78916]
[1748695739364,0.78919,2533.1,2533.0,0.78917]
[1748695741465,0.78919,2533.0,2532.9,2.151]
[1748695741760,0.78922,2532.9,2532.8,3.99703]
[1748695742260,4.56195,2533.2,2533.0,0.78917]
[1748695742261,0.78916,2533.1,2533.0,0.78917]
[1748695742650,0.79732086,2533.1,2533.0,0.78917]
[1748695747267,0.00816086,2533.1,2533.0,0.78917]
[1748695748559,0.78908,2533.4,2533.3,0.78907]
[1748695748760,0.6247,2533.4,2533.3,0.78907]
[1748695748964,1.41377,2533.4,2533.3,0.78907]
[1748695749170,0.6247,2533.4,2533.3,0.78907]
[1748695749465,0.78913,2533.2,2533.1,3.2078]